Cogmind - Beta 16 @@@ ROGUE MODE // 2025.11.16 @ 09:52:15 // Winter2019/RPGLIKE Player: daniels1231 Result: Destroyed by as-47605 with Assembled Heavy Rifle Performance ------------- Evolutions (1) 500 Regions Visited (4) 800 Robots Destroyed (50) 250 Value Destroyed (1029) 1029 Prototype IDs (2) 40 Alien Tech Used (0) 0 Bonus (43) 43 TOTAL SCORE: 2662 Bonus ------- High Alert Combat Kills 43 Cogmind --------- Core Integrity 0/1400 Matter 141/300 Energy 280/280 System Corruption 5% Temperature Cool (14) Movement Flying (280) Ox3 Location -9/Mines Parts ------- > --- POWER (1) -------- Heavy Ion Engine > --- PROPULSION (2) --- Flight Unit > --- UTILITY (3) ------ Transport Network Coupler > --- WEAPON (2) ------- Rocket Launcher Maul > --- INVENTORY (3) ---- Improved Flight Unit Datajack Maul Peak State ------------ > --- POWER ------------ Heavy Ion Engine > --- PROPULSION ------- Improved Flight Unit Improved Flight Unit > --- UTILITY ---------- Visual Processing Unit > --- WEAPON ----------- Maul Maul > --- INVENTORY -------- Transport Network Coupler Datajack [Rating: 15] Favorites ----------- Power Ion Engine Engine Ion Engine Propulsion Wheel Wheel Wheel Flight Unit Flight Unit Utility Visual Processing Unit Processor Visual Processing Unit Weapon Maul Ballistic Gun Assault Rifle Launcher EMP Blaster Impact Weapon Maul Special Melee Weapon Datajack Build | -11 -10 -10 -9 -9 ------- Run | Yrd Mat Min Mat Min Slots Evolved 4 | 2 . . . 2 Power . | . . . . . Propulsion 1 | 1 . . . . Utility 2 | . . . . 2 Weapon 1 | 1 . . . . Parts Attached 21 | 5 2 . 10 4 Power 2 | 1 . . 1 . Engine 2 | 1 . . 1 . Core . | . . . . . Reactor . | . . . . . Propulsion 7 | 2 . . 2 3 Treads . | . . . . . Leg . | . . . . . Wheel 2 | 2 . . . . Hover . | . . . . . Flight 5 | . . . 2 3 Utility 3 | . 2 . 1 . Device . | . . . . . Storage . | . . . . . Processor 3 | . 2 . 1 . Hackware . | . . . . . Protection . | . . . . . Artifact . | . . . . . Weapon 9 | 2 . . 6 1 Energy Gun . | . . . . . Energy Cannon . | . . . . . Ballistic Gun 2 | 2 . . . . Ballistic Cannon . | . . . . . Launcher 2 | . . . 1 1 Special Weapon . | . . . . . Impact Weapon 4 | . . . 4 . Slashing Weapon . | . . . . . Piercing Weapon . | . . . . . Special Melee Weapon 1 | . . . 1 . Unidentified Prototypes 2 | . . . 2 . Corrupted Parts 1 | . . . . 1 System Corruption 5 | . . . . 5 Parts Lost 4 | . . . 3 1 Power 1 | . . . 1 . Propulsion 2 | . . . 1 1 Utility . | . . . . . Weapon 1 | . . . 1 . Highest Loss Streak 2 | . . . 2 1 To Critical Strikes . | . . . . . Average Backups 1 | . . . 2 2 Power . | . . . . . Propulsion . | . . . . . Utility . | . . . . . Weapon . | . . . . . Tool/Special . | . . . . . Unused Backups . | . . . . . Power . | . . . . . Propulsion . | . . . . . Utility . | . . . . . Weapon . | . . . . . Tool/Special . | . . . . . Average Slot Usage (%) 93 | . 95 100 92 89 Engine 15 | . 16 16 15 14 Wheel 23 | . 33 33 26 . Flight 5 | . . . 2 26 Processor 15 | . 11 16 16 14 Ballistic Gun 9 | . 33 33 5 . Launcher 6 | . . . 8 3 Impact Weapon 14 | . . . 15 26 Peak Build Rating 15 | 5 7 7 15 12 Average Rating 8 | 3 5 7 8 10 On Entrance 5 | . 5 7 7 10 Avg Prop Armor Cover (%) 11 | . . . 11 . Naked Turns . | . . . . . Heaviest Build 15 | 8 8 8 14 15 Greatest Support 20 | 20 20 20 20 8 Greatest Overweight (x) 4 | . . . 4 2 Average Overweight (x) . | . . . . 1 Largest Inventory Capacity 3 | . . . 3 3 Average Capacity 2 | . . . 2 3 Most Carried 3 | . . . 3 3 Average Carried 1 | . . . 2 2 Final Capacity 3 | . . . 3 3 Final Carried 3 | . . . 1 3 Class Distribution -------------------- 80% | Mutant 19% | Gladiator Dominant Class ---------------- Mutant | -10/Materials Mutant | -10/Mines Mutant | -9/Materials Gladiator | -9/Mines Resources | -11 -10 -10 -9 -9 ----------- Run | Yrd Mat Min Mat Min Matter Collected 622 | 240 19 . 327 36 Remotely . | . . . . . Salvage Created 1135 | . 19 26 1020 70 Parts 55 | . 4 2 40 9 Haulers Intercepted 1 | . . . 1 . Recyclers Shooed . | . . . . . Parts Field Recycled . | . . . . . Retrieved Matter . | . . . . . Parts Self-Destructed . | . . . . . Prevented . | . . . . . Parts Restored . | . . . . . Kills | -11 -10 -10 -9 -9 ------- Run | Yrd Mat Min Mat Min Combat Hostiles Destroyed 51 | . . 2 28 21 Melee 8 | . . . 6 2 Guns 7 | . . 2 5 . AOE 23 | . . . 5 18 Classes Destroyed 9 | . 1 1 6 1 Worker 4 | . . . 4 . Builder 5 | . . . 5 . Hauler 1 | . . . 1 . Operator 1 | . . . 1 . Watcher 4 | . 1 . 3 . Swarmer 16 | . . 2 9 5 Grunt 13 | . . . 13 . Sentry 6 | . . . 6 . Assembled 16 | . . . . 16 Best Kill Streak 16 | . 1 2 6 16 Combat Bots Only 16 | . . 2 6 16 Max Kills in Single Turn 5 | . 1 1 1 5 Gunslinging . | . . . . . Exploded 5 | . . . 1 5 Melee 1 | . . . 1 1 Uniques/NPCs Destroyed . | . . . . . Combat | -11 -10 -10 -9 -9 -------- Run | Yrd Mat Min Mat Min Hostile Shots Fired 307 | . . 18 202 87 Missed 86 | . . 6 60 20 Hits 221 | . . 12 142 67 Melee 4 | . . . . 4 Projectile 217 | . . 12 142 63 Critical Strikes 4 | . . . 4 . Part Disruptions 1 | . . . . 1 Damage Taken 2262 | . . 103 1516 643 Core 1869 | . . 82 1263 524 Absorbed by Shields . | . . . . . Redirected to Core 1284 | . . 64 857 363 Ignored by Resistances 367 | . . 24 197 146 Core Remaining (%) 93 | 100 . 86 . . Volleys Fired 68 | . 1 7 50 10 Largest 2 | . 2 2 2 1 Hottest 40 | . 40 40 40 33 Shots Fired 102 | . 2 14 76 10 Gun 68 | . 2 14 52 . Cannon . | . . . . . Launcher 34 | . . . 24 10 Special . | . . . . . Kinetic 68 | . 2 14 52 . Thermal . | . . . . . Explosive 10 | . . . . 10 Electromagnetic 24 | . . . 24 . Robot Hit Streak 8 | . 1 2 8 5 Robot Miss Streak 7 | . . 7 4 . Penetration Max . | . . . . . Secondary Targets 3 | . . 1 2 . Max Gunslinging Chain 1 | . . 1 1 . Shots Hit Robots 110 | . 1 5 98 6 Core Hits 67 | . 1 3 31 32 Critical Kills 3 | . . . 2 1 Critical Parts Destroyed 13 | . . . 13 . Critical Strikes 16 | . . . 15 1 Smash 16 | . . . 15 1 Melee Attacks 91 | . . . 82 9 Impact 91 | . . . 82 9 Slashing . | . . . . . Piercing . | . . . . . Sneak Attacks 10 | . . . 10 . Combat Hostiles 1 | . . . 1 . Follow-up Attacks 3 | . . . 2 1 Damage Inflicted 5122 | . 13 99 3612 1398 Guns 379 | . 13 88 278 . Cannons . | . . . . . Explosions 1880 | . . . 636 1244 Melee 2851 | . . . 2697 154 Ramming 12 | . . 11 1 . Kinetic 379 | . 13 88 278 . Thermal 22 | . . . 22 . Explosive 1315 | . . . 71 1244 Electromagnetic 543 | . . . 543 . Impact 2851 | . . . 2697 154 Slashing . | . . . . . Piercing . | . . . . . Highest Corruption 5 | . . . . 5 Average Corruption 5 | . . . . 5 Corruption Purged . | . . . . . Corruption Blocked . | . . . . . Effects 3 | . . . . 3 Message Errors 1 | . . . . 1 Matter Fused 1 | . . . . 1 Energy Discharges 1 | . . . . 1 Overload Shots . | . . . . . Overflow Damage 1073 | . . . 990 83 Projectiles . | . . . . . Explosions 49 | . . . 6 43 Melee 1024 | . . . 984 40 Knockbacks 14 | . . . 14 . Impact 13 | . . . 13 . Kinetic . | . . . . . Secondary 1 | . . . 1 . Self-Inflicted Damage 148 | . . 5 114 29 Shots 5 | . . . 3 2 Rammed 2 | . . 1 1 . Targets Rammed 2 | . . 1 1 . Kicked . | . . . . . Crushed . | . . . . . Highest Temperature 23 | . . 18 23 18 Average Temperature 8 | . . 13 8 7 Received Heat Transfer 611 | . . 18 513 80 Siege Activations . | . . . . . Martial Activations . | . . . . . Shielding Activations . | . . . . . Robots Disrupted . | . . . . . Combat Hostiles . | . . . . . Robots Corrupted 18 | . . . 17 1 Combat Hostiles 13 | . . . 12 1 Parts Fried 18 | . . . 18 . Impact Corruptions 45 | . . . 43 2 Robots Melted . | . . . . . Combat Hostiles . | . . . . . Parts Melted . | . . . . . Heat Transferred 50 | . . . 50 . Parts Sabotaged . | . . . . . Parts Stolen . | . . . . . Parts Stripped . | . . . . . Power Chain Reactions 1 | . . . 1 . Alert | -11 -10 -10 -9 -9 ------- Run | Yrd Mat Min Mat Min Maximum Alert Level 2 | . . . 2 1 Low Security (%) 55 | 100 100 100 34 84 Level 1 32 | . . . 46 15 Level 2 12 | . . . 18 . Level 3 . | . . . . . Level 4 . | . . . . . Level 5 . | . . . . . High Security . | . . . . . Max Security . | . . . . . Peak Influence 467 | . 7 70 467 214 Initial 163 | . . . 11 163 Average 188 | . . 27 250 165 Influence Increases 1166 | . 7 80 894 185 Destroy 0b10 Robot/C 700 | . . 40 560 100 Destroy 0b10 Robot/NC 75 | . 5 . 70 . Destroy Leader 170 | . 2 10 138 20 Successful Hack 10 | . . . 10 . Disable Machine 30 | . . . 30 . Destroy Structure 91 | . . . 26 65 Lose Combat Pursuer 90 | . . 30 60 . Influence Decreases 958 | . 7 50 505 396 Entered New Map 275 | . . . 19 256 Time Decay 643 | . 7 50 456 130 Lost Part 40 | . . . 30 10 Squads Dispatched 8 | . 3 . 5 . Investigation 3 | . 2 . 1 . Extermination . | . . . . . Reinforcement 5 | . 1 . 4 . Assault . | . . . . . Garrison . | . . . . . Intercept . | . . . . . Searches Triggered . | . . . . . Construction Impeded 2 | . . . 2 . Haulers Reinforced . | . . . . . Active Scanning Responses . | . . . . . Cargo Convoy Interrupts . | . . . . . Stealth | -11 -10 -10 -9 -9 --------- Run | Yrd Mat Min Mat Min Distress Signals 3 | . . . 3 . Communications Jammed . | . . . . . Distress Signals . | . . . . . Times Spotted 83 | . 1 7 40 35 Peak Tracking Total 20 | . 2 5 8 20 Tactical Retreats 5 | . . 1 3 1 Traps | -11 -10 -10 -9 -9 ------- Run | Yrd Mat Min Mat Min Traps Triggered 2 | . . . 2 . Indirectly 2 | . . . 2 . Trap Hack Attempts . | . . . . . Triggered . | . . . . . Disarmed . | . . . . . Reprogrammed . | . . . . . Reused . | . . . . . Traps Extracted . | . . . . . Installed . | . . . . . Triggered . | . . . . . Machines | -11 -10 -10 -9 -9 ---------- Run | Yrd Mat Min Mat Min Machines Disabled 2 | . . . 2 . Max in Single Turn 2 | . . . 2 . Machines Repaired . | . . . . . Machines Dismantled . | . . . . . Machines Sabotaged . | . . . . . Overloaded Fab Kills . | . . . . . Hacking | -11 -10 -10 -9 -9 --------- Run | Yrd Mat Min Mat Min Machines Accessed 5 | . 3 . 2 . Terminals 3 | . 2 . 1 . Fabricators . | . . . . . Repair Stations . | . . . . . Recycling Units 1 | . 1 . . . Scanalyzers 1 | . . . 1 . Garrison Access . | . . . . . Total Hacks 14 | . 10 . 4 . Successful 5 | . 3 . 2 . Failed 9 | . 7 . 2 . Catastrophic 4 | . 3 . 1 . Database Lockouts . | . . . . . Manual . | . . . . . Terminals 8 | . 6 . 2 . Fabricators . | . . . . . Repair Stations . | . . . . . Recycling Units 4 | . 4 . . . Scanalyzers 2 | . . . 2 . Garrison Access . | . . . . . Terminal Hacks 2 | . 2 . . . Alert Level 1 | . 1 . . . Zone Layout 1 | . 1 . . . Fabricator Hacks . | . . . . . Repair Station Hacks . | . . . . . Recycling Unit Hacks 1 | . 1 . . . Retrieve Components 1 | . 1 . . . Scanalyzer 2 | . . . 2 . Insert Component 1 | . . . 1 . Analyze 1 | . . . 1 . Garrison Access Hacks . | . . . . . Unauthorized Hacks . | . . . . . Terminals . | . . . . . Fabricators . | . . . . . Repair Stations . | . . . . . Recycling Units . | . . . . . Scanalyzers . | . . . . . Garrison Access . | . . . . . Data Cores Recovered 1 | . . . 1 . Used . | . . . . . Hacking Detections 4 | . 3 . 1 . Full Trace Events 3 | . 2 . 1 . Feedback Events . | . . . . . Feedback Blocked . | . . . . . Robot Schematics Acquired . | . . . . . Robots Built . | . . . . . Authchips . | . . . . . Time . | . . . . . Total Robot Build Rating . | . . . . . Part Schematics Acquired 1 | . . . 1 . Parts Built . | . . . . . Authchips . | . . . . . Time . | . . . . . Total Part Build Rating . | . . . . . Part Studies Acquired . | . . . . . Parts Repaired . | . . . . . Time . | . . . . . Parts Recycled . | . . . . . Recycled Matter . | . . . . . Retrieved Matter . | . . . . . Retrieved Components 6 | . 6 . . . Parts Scanalyzed 1 | . . . 1 . Part Schematics Acquired 1 | . . . 1 . Parts Damaged . | . . . . . Bothacking | -11 -10 -10 -9 -9 ------------ Run | Yrd Mat Min Mat Min Used RIF Installer . | . . . . . Robots Hacked . | . . . . . Non-combat . | . . . . . Combat . | . . . . . Robot Hacks Applied . | . . . . . Relay Couplers Released . | . . . . . Fabnet Peak Effective % . | . . . . . Robots Rewired . | . . . . . Allies Hacked . | . . . . . Hacks Repelled . | . . . . . Allies | -11 -10 -10 -9 -9 -------- Run | Yrd Mat Min Mat Min Total Allies . | . . . . . Largest Group . | . . . . . Highest-Rated Group . | . . . . . Highest-Rated Ally . | . . . . . Total Orders . | . . . . . Ally Attacks . | . . . . . Total Damage . | . . . . . Kills . | . . . . . Allies Corrupted . | . . . . . Allies Melted . | . . . . . Intel | -11 -10 -10 -9 -9 ------- Run | Yrd Mat Min Mat Min Active Infowar (turns) 1601 | . 10 171 1144 276 Optics 1252 | . 10 171 1071 . T.N.C. 349 | . . . 73 276 Robot Analysis Total . | . . . . . Derelict Logs Recovered . | . . . . . Drone Launches . | . . . . . Drone Recoveries . | . . . . . Exploration | -11 -10 -10 -9 -9 ------------- Run | Yrd Mat Min Mat Min Turns Passed 1850 | 76 134 171 1193 276 Spaces Moved 1418 | 89 160 188 803 178 Core 18 | 8 . . 10 . Treads . | . . . . . Legs . | . . . . . Wheels 1156 | 81 160 188 727 . Hover . | . . . . . Flight 244 | . . . 66 178 Fastest Speed 50 | 50 80 80 80 117 Average Speed 91 | 77 80 80 90 123 Slowest Speed 250 | 80 80 80 250 180 Overloaded Moves . | . . . . . Propulsion Burnouts . | . . . . . Robots Hopped . | . . . . . Potential Cave-ins . | . . . . . Cave-ins Triggered . | . . . . . Exploration Rate (%) 32 | 4 23 39 53 43 Regions Visited 4 Branch Regions 2 Pre-discovered Areas . | . . . . . Known Exits Taken . | . . . . . Unknown Exits Taken 4 | 1 1 1 1 . Scrap Searched . | . . . . . Spaces Dug . | . . . . . Terrain Destroyed 132 | . . . 30 102 Melee . | . . . . . Projectile . | . . . . . AOE 132 | . . . 30 102 Terrain Rammed . | . . . . . Walls Destroyed . | . . . . . Machines Disabled . | . . . . . Actions | -11 -10 -10 -9 -9 --------- Run | Yrd Mat Min Mat Min Total 1712 | 93 163 195 1054 207 Wait 64 | . . . 64 . Move 1414 | 88 159 187 802 178 Hop . | . . . . . Pick Up 16 | . . . 13 3 Fast Attach 9 | 5 2 . 1 1 Attach 9 | . . . 8 1 Detach 2 | . 1 . 1 . Swap 7 | . . . 3 4 Drop 12 | . . . 11 1 Fire 68 | . 1 7 50 10 Melee 87 | . . . 79 8 Ram 2 | . . 1 1 . Kick . | . . . . . Crush . | . . . . . Escape Stasis . | . . . . . Rewire . | . . . . . Trap . | . . . . . Miscellaneous 22 | . . . 21 1 Route ------- -11/Scrapyard -10/Materials -10/Mines -9/Materials (discovered 2 exits: [*Mat] / [*Min]) -9/Mines (discovered 1 exit: [*Mat]) History --------- Turn | Location | Event 1 | -11/Scrapyard | Upgraded with Propulsion slot (x1) 1 | -11/Scrapyard | Upgraded with Weapon slot (x1) 4 | -11/Scrapyard | Discovered new exit (range 15) 77 | -11/Scrapyard | Entered Materials 183 | -10/Materials | Discovered new exit (range 8) 211 | -10/Materials | Entered Mines 317 | -10/Mines | Build established: Mutant 326 | -10/Mines | Discovered new exit (range 10) 382 | -10/Mines | Entered Materials 384 | -9/Materials | Reached level 2 637 | -9/Materials | Reached level 3 748 | -9/Materials | Core integrity fell below 50% 789 | -9/Materials | Core integrity fell below 20% 966 | -9/Materials | Reached level 4 1068 | -9/Materials | Discovered new exit (range 13) 1157 | -9/Materials | Discovered new exit (range 5) 1575 | -9/Materials | Entered Mines 1577 | -9/Mines | Reached level 5 1692 | -9/Mines | Discovered new exit (range 8) 1764 | -9/Mines | Received a Rocket Launcher from a helpful Derelict 1776 | -9/Mines | Upgraded with Utility slot (x2) 1813 | -9/Mines | Assembled infested the area 1818 | -9/Mines | Assisted by a Guerilla fighting off Assembled 1851 | -9/Mines | Destroyed by as-47605 with Assembled Heavy Rifle Last Messages --------------- 01840_ Destroyed Asb. Blade. 01840_ as-97160 system corrupted by crushing effect. 01841_ as-97160 system terminally corrupted. 01844_ as-43785 destroyed. 01844_ as-13425 destroyed. 01845_ HV Slug penetrates Wall. 01846_ Destroyed Asb. F-torch. 01846_ as-68814 destroyed. 01846_ as-42055 destroyed. 01848_ as-91085 destroyed. 01848_ as-29147 destroyed. 01848_ as-32218 destroyed. 01848_ as-18307 destroyed. [Achievement: Exterminator] 01848_ Flight Unit destroyed. 01848_ Destroyed Flight Unit. 01848_ as-88157 destroyed. [Achievement: Quick And Dirty] 01849_ The unstable cave ceiling collapses. Map ----- +----------------------------------------------------+ | ?????????????????????????????????????????? # | | ??????????????????????????????????????????? | | ???????????????????????????????????????????# | | ???????????????????????????????????????????# | | ???????????????????????????????????????????# | | ??????????????? ##?????????????????????????# | | ??????????????| #????????????????????????# | | ?????????????? ???????????????????????## | | ?????????????? ??????????????????###### | | ?????????????? ?????????????????## < | | ??????????????? ?????????????????# | | ??????????????? ?????=???????????# ## | | ?????????????? %% ???? ???????????## ### | | ?????????????## % ????u ????????????## ??# | | ?????????????# a ???? ?????????????# #??# | | ?????????????# ##?# ??????????????## ???? | | ?????????????? # ???????????????## ???? | | ??????????????# ????????????????#????? | | ??????????????# % ?????????????????????? | | ??????????????# #?????????????????????? | | ??????????????# a #?????????????????????? | | ??????????????# ?????????????????????? | | ???????????????# #?????????????????????? | | ???????????????# #?????????????????????? | | ???????????????? #?????????????????????? | | ?????????????????### @##?????????????????????? | | ???????????????????# ##?????????????????????? | | ?????????????????? ; #?????????????????????? | | ?????????????????## #?????????????????????? | | ???????# ????????# = #??????????????????### | | ???????? ????# #?#####????????????# | | ???????# ## ### #????????????# | | ???????# ## #????????????# # | | ???????# # = ## ############## # | | ??????????" ?# # ? ? # | | ?????????"" ??# h ### # | | ?????????"" ???# #?# ########## | | ?????????"" ????# # #????????? | | ????????? ?????## # #????????? | | ?????????????????## ### ########????????? | | ??????????????????######?#####???????????????? | | ?????????????????????????????????????????????? | | | | | | | | | | | | | | | | | +----------------------------------------------------+ Best States ------------- Heat Dissipation 25 Energy Generation 14 Energy Capacity 280 Matter Stores 300 Matter Capacity 300 Sight Range 18 Robot Scan Range 18 Terrain Scan Density 10 Resistance: KI 20 Resistance: TH 5 Evasion (%) 44 Targeting Accuracy 5 Item Schematics ----------------- Datajack | -9/Materials | Scanalyzed Robot Schematics ------------------ None Fabricated ------------ Nothing Repaired ---------- Nothing Studied --------- None Alien Tech Used ----------------- None Achievements -------------- A Problem For Future Me Batter Up Exterminator Hunted Quick And Dirty Challenges ------------ None RPGLIKE | -11 -10 -10 -9 -9 --------- Run | Yrd Mat Min Mat Min Levels Raised 4 | . . . 3 1 XP Earned 10021 | 3000 . 750 5171 1100 XP Spent 8900 | 3000 . . 4425 1475 Upgrades 38 | 7 . . 28 3 Propulsion Slot 1 | 1 . . . . Utility Slot 2 | . . . . 2 Weapon Slot 1 | 1 . . . . Core Integrity 16 | . . . 15 1 Inventory Capacity 3 | . . . 3 . Sensor Range 9 | . . . 9 . KI Resistance % 4 | 4 . . . . TH Resistance % 1 | . . . 1 . KI Damage % 1 | 1 . . . . Protomatter Created 355 | . . 11 332 12 Integrity Restored 459 | . . . 447 12 Core 459 | . . . 447 12 Protomatter Decayed 214 | . . 24 161 29 Game ------ Seed PhysicsHugeBattery Manual? 0 Play Time 00:25:20 Cumulative 5.2 hours Start 2025.11.16 @ 09:26:34 End 2025.11.16 @ 09:52:15 Sessions 1 Manual Loads 0 Difficulty Rogue Special Mode Winter2019/RPGLIKE Game No. 9 Rogue 5 Adventurer 4 Explorer 0 Win Type - Total 0 Types 0/0/0/0/0/0/0/0/0/0 Lore% 1 Gallery% 10 Achievement% 9 Wizard Run 0 Options --------- Layout 2 ASCII 0 Keyboard 0 Movement Arrows Keybinds 1 Fullscreen 2 Font 32/SmallcapsGlow Map View 50x44 Zoom Use 0% Tactical HUD 1 Map Filters NONE Filters NONE Steam 1 RUN: e69345ff-b595-4bf9-abf5-fc132dbf8248